[Event "*** Titled Tuesday Blitz"]
[Site "Chess.com"]
[Date "2018.04.03"]
[Round "3"]
[White "MFBerna"]
[Black "WinnerOleg"]
[Result "1-0"]
[WhiteElo "2295"]
[BlackElo "2343"]
[TimeControl "180+2"]
[EndTime "13:36:22 PDT"]
[Termination "MFBerna won by resignation"]

1. e4 {[%clk 0:02:59.9]} 1... g6 {[%clk 0:03:00.2]} 2. d4 {[%clk 0:03:00.5]}
2... Bg7 {[%clk 0:03:01.9]} 3. Nf3 {[%clk 0:03:01.5]} 3... a6 {[%clk 0:03:02.4]}
4. Nc3 {[%clk 0:03:01.9]} 4... b5 {[%clk 0:03:03.9]} 5. a3 {[%clk 0:03:02.2]}
5... Bb7 {[%clk 0:03:05]} 6. Bd3 {[%clk 0:02:56.4]} 6... Nf6 {[%clk 0:03:05.6]}
7. O-O {[%clk 0:02:57]} 7... O-O {[%clk 0:03:04.7]} 8. Bg5 {[%clk 0:02:52]} 8...
d6 {[%clk 0:02:52.6]} 9. Re1 {[%clk 0:02:50.8]} 9... h6 {[%clk 0:02:45.5]} 10.
Bh4 {[%clk 0:02:50.5]} 10... g5 {[%clk 0:02:28.3]} 11. Bg3 {[%clk 0:02:51.2]}
11... Nh5 {[%clk 0:02:26.3]} 12. Ne2 {[%clk 0:02:38.9]} 12... c5 {[%clk
0:02:23.1]} 13. c3 {[%clk 0:02:39.2]} 13... cxd4 {[%clk 0:02:21.5]} 14. cxd4
{[%clk 0:02:39.9]} 14... Nc6 {[%clk 0:02:12.9]} 15. Rc1 {[%clk 0:02:31]} 15...
Rc8 {[%clk 0:02:10.7]} 16. Bb1 {[%clk 0:02:31.2]} 16... e5 {[%clk 0:02:03.4]}
17. d5 {[%clk 0:01:44.8]} 17... Ne7 {[%clk 0:01:59.7]} 18. Rxc8 {[%clk
0:01:42.5]} 18... Bxc8 {[%clk 0:01:54.6]} 19. Nd2 {[%clk 0:01:35]} 19... f5
{[%clk 0:01:44.2]} 20. exf5 {[%clk 0:01:36.9]} 20... Bxf5 {[%clk 0:01:43.1]} 21.
Bxf5 {[%clk 0:01:21]} 21... Nxf5 {[%clk 0:01:45]} 22. Ne4 {[%clk 0:01:21.1]}
22... Qc7 {[%clk 0:01:27.4]} 23. a4 {[%clk 0:01:19.9]} 23... Rc8 {[%clk
0:01:26.4]} 24. axb5 {[%clk 0:01:20.6]} 24... axb5 {[%clk 0:01:28.3]} 25. N2c3
{[%clk 0:01:16.4]} 25... Nhxg3 {[%clk 0:01:18.7]} 26. hxg3 {[%clk 0:01:01.1]}
26... Nd4 {[%clk 0:01:19.9]} 27. Qh5 {[%clk 0:00:47.3]} 27... b4 {[%clk
0:01:14.5]} 28. Nd1 {[%clk 0:00:29.7]} 28... Nb5 {[%clk 0:00:44.9]} 29. Ne3
{[%clk 0:00:25.5]} 29... Qf7 {[%clk 0:00:45.8]} 30. Qxf7+ {[%clk 0:00:23]} 30...
Kxf7 {[%clk 0:00:47.7]} 31. Nf5 {[%clk 0:00:20.3]} 31... Bf8 {[%clk 0:00:48.3]}
32. Ra1 {[%clk 0:00:20.6]} 32... b3 {[%clk 0:00:46.5]} 33. Ra5 {[%clk
0:00:20.6]} 33... Rb8 {[%clk 0:00:32.9]} 34. Rxb5 {[%clk 0:00:20.6]} 34... Rd8
{[%clk 0:00:25.4]} 35. Rb7+ {[%clk 0:00:20.7]} 1-0

[Event "*** Titled Tuesday Blitz"]
[Site "Chess.com"]
[Date "2018.04.03"]
[Round "3"]
[White "Vusatiuk_Vladimir"]
[Black "Orest_Vovk"]
[Result "0-1"]
[WhiteElo "2186"]
[BlackElo "2365"]
[TimeControl "180+2"]
[EndTime "13:36:38 PDT"]
[Termination "Orest_Vovk won on time"]

1. e4 {[%clk 0:02:47.1]} 1... Nf6 {[%clk 0:03:00.6]} 2. e5 {[%clk 0:02:45.9]}
2... Nd5 {[%clk 0:03:00.6]} 3. c4 {[%clk 0:02:47.4]} 3... Nb6 {[%clk 0:03:00.8]}
4. a4 {[%clk 0:02:48.4]} 4... d6 {[%clk 0:03:00.8]} 5. a5 {[%clk 0:02:48.8]}
5... N6d7 {[%clk 0:03:01.7]} 6. exd6 {[%clk 0:02:50.4]} 6... exd6 {[%clk
0:03:02.1]} 7. d4 {[%clk 0:02:49.1]} 7... Be7 {[%clk 0:03:02.8]} 8. Nf3 {[%clk
0:02:49]} 8... O-O {[%clk 0:03:03.4]} 9. Bd3 {[%clk 0:02:50]} 9... Bf6 {[%clk
0:03:02.2]} 10. O-O {[%clk 0:02:49.8]} 10... Nc6 {[%clk 0:03:00.2]} 11. Be3
{[%clk 0:02:49.6]} 11... Nb4 {[%clk 0:02:58.5]} 12. Nc3 {[%clk 0:02:46.2]} 12...
Nxd3 {[%clk 0:02:58.2]} 13. Qxd3 {[%clk 0:02:47]} 13... Re8 {[%clk 0:02:54.5]}
14. Rfe1 {[%clk 0:02:46.6]} 14... Nf8 {[%clk 0:02:36.2]} 15. Ne4 {[%clk
0:02:46.2]} 15... Bf5 {[%clk 0:02:25.6]} 16. Nxf6+ {[%clk 0:02:44.6]} 16... Qxf6
{[%clk 0:02:27]} 17. Qb3 {[%clk 0:02:45.5]} 17... b6 {[%clk 0:02:11.4]} 18. d5
{[%clk 0:02:45.1]} 18... Nd7 {[%clk 0:01:56.8]} 19. axb6 {[%clk 0:02:41]} 19...
axb6 {[%clk 0:01:57.4]} 20. Qb5 {[%clk 0:02:41.6]} 20... Rxa1 {[%clk 0:01:54.9]}
21. Rxa1 {[%clk 0:02:41.7]} 21... h6 {[%clk 0:01:44.8]} 22. h3 {[%clk
0:02:41.5]} 22... Bxh3 {[%clk 0:01:00.5]} 23. gxh3 {[%clk 0:02:35.8]} 23... Qxf3
{[%clk 0:01:00.1]} 24. Qxd7 {[%clk 0:02:36]} 24... Rxe3 {[%clk 0:00:59.6]} 25.
Ra8+ {[%clk 0:02:18.4]} 25... Kh7 {[%clk 0:00:59.6]} 26. fxe3 {[%clk 0:02:19.4]}
26... Qg3+ {[%clk 0:00:53.9]} 27. Kf1 {[%clk 0:02:20.3]} 27... Qf3+ {[%clk
0:00:52.9]} 28. Ke1 {[%clk 0:02:20]} 28... Qxe3+ {[%clk 0:00:51.8]} 29. Kd1
{[%clk 0:02:19.5]} 29... Qd3+ {[%clk 0:00:51.1]} 30. Kc1 {[%clk 0:02:20.6]}
30... Qxc4+ {[%clk 0:00:45.1]} 31. Kb1 {[%clk 0:02:21.4]} 31... Qd3+ {[%clk
0:00:42.9]} 32. Ka1 {[%clk 0:02:20.4]} 32... Qd1+ {[%clk 0:00:42.6]} 33. Ka2
{[%clk 0:02:18.8]} 33... Qxd5+ {[%clk 0:00:44.5]} 34. Kb1 {[%clk 0:02:20.3]}
34... Qxa8 {[%clk 0:00:42.4]} 35. Qxc7 {[%clk 0:02:13.8]} 35... Qe4+ {[%clk
0:00:42.9]} 36. Ka1 {[%clk 0:02:13.5]} 36... Qe1+ {[%clk 0:00:43.4]} 37. Ka2
{[%clk 0:02:14.2]} 37... Qe6+ {[%clk 0:00:44.9]} 38. Kb1 {[%clk 0:02:14.8]}
38... d5 {[%clk 0:00:46.7]} 39. Qc3 {[%clk 0:02:13.7]} 39... Qe4+ {[%clk
0:00:44.2]} 40. Ka1 {[%clk 0:02:14.2]} 40... Qa4+ {[%clk 0:00:41.9]} 0-1

[Event "*** Titled Tuesday Blitz"]
[Site "Chess.com"]
[Date "2018.04.03"]
[Round "3"]
[White "simplerXiao"]
[Black "abubakrtagelsir"]
[Result "1-0"]
[WhiteElo "2483"]
[BlackElo "2263"]
[TimeControl "180+2"]
[EndTime "13:36:39 PDT"]
[Termination "simplerXiao won by resignation"]

1. e4 {[%clk 0:03:01.9]} 1... d6 {[%clk 0:03:00.1]} 2. d4 {[%clk 0:03:02.3]}
2... Nf6 {[%clk 0:02:58.1]} 3. Nc3 {[%clk 0:03:03]} 3... g6 {[%clk 0:02:56.2]}
4. f4 {[%clk 0:02:59.8]} 4... Bg7 {[%clk 0:02:56.1]} 5. Nf3 {[%clk 0:03:00.8]}
5... c5 {[%clk 0:02:56]} 6. d5 {[%clk 0:03:00.5]} 6... O-O {[%clk 0:02:55.6]} 7.
Be2 {[%clk 0:02:56.2]} 7... b5 {[%clk 0:02:53.4]} 8. e5 {[%clk 0:02:46.2]} 8...
dxe5 {[%clk 0:02:44.1]} 9. fxe5 {[%clk 0:02:45.8]} 9... Ng4 {[%clk 0:02:42.8]}
10. Bf4 {[%clk 0:02:44.2]} 10... b4 {[%clk 0:02:40.4]} 11. Ne4 {[%clk
0:02:43.8]} 11... Nd7 {[%clk 0:02:22.2]} 12. d6 {[%clk 0:02:06.3]} 12... Bb7
{[%clk 0:01:55.4]} 13. Bg5 {[%clk 0:01:38.5]} 13... f6 {[%clk 0:01:43.1]} 14.
dxe7 {[%clk 0:01:35.7]} 14... Qxe7 {[%clk 0:01:43.6]} 15. exf6 {[%clk
0:01:26.9]} 15... Ndxf6 {[%clk 0:01:28]} 16. Nxf6+ {[%clk 0:01:24.4]} 16... Bxf6
{[%clk 0:00:57.4]} 17. Bxf6 {[%clk 0:01:23.4]} 17... Rxf6 {[%clk 0:00:45.3]} 18.
Qd3 {[%clk 0:01:22]} 18... Ba6 {[%clk 0:00:33.5]} 19. Qd5+ {[%clk 0:01:18.8]}
19... Kg7 {[%clk 0:00:31.4]} 20. O-O-O {[%clk 0:01:16.9]} 20... Bb7 {[%clk
0:00:23.3]} 21. Qd7 {[%clk 0:01:07.2]} 21... Re8 {[%clk 0:00:17]} 22. Bb5 {[%clk
0:01:06.3]} 22... Ne3 {[%clk 0:00:15]} 23. Qxe8 {[%clk 0:01:02.6]} 23... Qxe8
{[%clk 0:00:15.2]} 24. Bxe8 {[%clk 0:01:03.2]} 24... Nxd1 {[%clk 0:00:16.3]} 25.
Rxd1 {[%clk 0:01:02.7]} 25... Bxf3 {[%clk 0:00:17.6]} 26. gxf3 {[%clk
0:01:03.6]} 26... Rxf3 {[%clk 0:00:18.5]} 27. b3 {[%clk 0:01:01.1]} 27... h5
{[%clk 0:00:17.3]} 28. Rd7+ {[%clk 0:00:59.9]} 28... Kh6 {[%clk 0:00:16.1]} 29.
Rxa7 {[%clk 0:01:00.2]} 29... h4 {[%clk 0:00:15.6]} 30. Rc7 {[%clk 0:00:55.2]}
30... Rf5 {[%clk 0:00:15.7]} 31. Bd7 {[%clk 0:00:55.4]} 31... Rg5 {[%clk
0:00:15.9]} 32. h3 {[%clk 0:00:56.2]} 32... Rg3 {[%clk 0:00:15.8]} 33. Kb2
{[%clk 0:00:56.6]} 33... Rg5 {[%clk 0:00:14.2]} 34. Bg4 {[%clk 0:00:56.9]} 34...
Re5 {[%clk 0:00:13.9]} 35. Rc8 {[%clk 0:00:57]} 35... Kg5 {[%clk 0:00:14.9]} 36.
Rh8 {[%clk 0:00:57.3]} 36... Rd5 {[%clk 0:00:14.9]} 37. a3 {[%clk 0:00:57.8]}
37... bxa3+ {[%clk 0:00:15.4]} 38. Kxa3 {[%clk 0:00:58.8]} 38... Re5 {[%clk
0:00:16.9]} 39. b4 {[%clk 0:00:57.2]} 39... cxb4+ {[%clk 0:00:17.5]} 40. Kxb4
{[%clk 0:00:58.4]} 40... Re1 {[%clk 0:00:17.1]} 41. c4 {[%clk 0:00:59.2]} 41...
Rb1+ {[%clk 0:00:17.9]} 42. Kc5 {[%clk 0:01:00.3]} 42... Ra1 {[%clk 0:00:17.1]}
43. Kd6 {[%clk 0:01:00.2]} 43... Ra6+ {[%clk 0:00:17.5]} 44. Kd5 {[%clk
0:01:01]} 44... Kf6 {[%clk 0:00:18.3]} 45. c5 {[%clk 0:01:01.9]} 45... g5 {[%clk
0:00:19.5]} 46. Rh6+ {[%clk 0:01:02.4]} 1-0

[Event "*** Titled Tuesday Blitz"]
[Site "Chess.com"]
[Date "2018.04.03"]
[Round "3"]
[White "RitvarsReimanis"]
[Black "nubair1198"]
[Result "1-0"]
[WhiteElo "2388"]
[BlackElo "2563"]
[TimeControl "180+2"]
[EndTime "13:36:44 PDT"]
[Termination "RitvarsReimanis won on time"]

1. e4 {[%clk 0:03:01.9]} 1... c6 {[%clk 0:02:51.8]} 2. c4 {[%clk 0:02:59.4]}
2... d5 {[%clk 0:02:53.7]} 3. cxd5 {[%clk 0:02:58]} 3... cxd5 {[%clk 0:02:55.6]}
4. exd5 {[%clk 0:02:54.8]} 4... Nf6 {[%clk 0:02:56.9]} 5. Qa4+ {[%clk
0:02:52.8]} 5... Nbd7 {[%clk 0:02:57.8]} 6. Nc3 {[%clk 0:02:52.2]} 6... g6
{[%clk 0:02:52.6]} 7. Nf3 {[%clk 0:02:41.8]} 7... Bg7 {[%clk 0:02:54.1]} 8. Be2
{[%clk 0:02:40.4]} 8... O-O {[%clk 0:02:55.6]} 9. O-O {[%clk 0:02:42]} 9... Nb6
{[%clk 0:02:40.1]} 10. Qh4 {[%clk 0:02:43.2]} 10... Nbxd5 {[%clk 0:02:37.3]} 11.
d4 {[%clk 0:02:43.7]} 11... Bf5 {[%clk 0:02:27.1]} 12. Bh6 {[%clk 0:02:26.6]}
12... Rc8 {[%clk 0:02:28.4]} 13. Rac1 {[%clk 0:02:18]} 13... Qa5 {[%clk
0:02:19.2]} 14. Bd2 {[%clk 0:01:47.3]} 14... Nxc3 {[%clk 0:02:10.1]} 15. Bxc3
{[%clk 0:01:37.7]} 15... Qxa2 {[%clk 0:02:10]} 16. Ra1 {[%clk 0:01:38.4]} 16...
Qe6 {[%clk 0:02:11.4]} 17. Rfe1 {[%clk 0:01:37.5]} 17... Qb6 {[%clk 0:02:09.3]}
18. Ne5 {[%clk 0:01:20.1]} 18... Rfd8 {[%clk 0:02:08]} 19. Nc4 {[%clk
0:01:09.1]} 19... Qe6 {[%clk 0:01:36.1]} 20. Bd3 {[%clk 0:00:45]} 20... Qd5
{[%clk 0:01:37.2]} 21. Ne3 {[%clk 0:00:39.2]} 21... Qd7 {[%clk 0:01:37.9]} 22.
Nxf5 {[%clk 0:00:36.1]} 22... gxf5 {[%clk 0:01:39.8]} 23. Rxa7 {[%clk
0:00:36.6]} 23... Nd5 {[%clk 0:01:40.6]} 24. Ba5 {[%clk 0:00:36.3]} 24... Re8
{[%clk 0:01:35.5]} 25. g4 {[%clk 0:00:31.1]} 25... e6 {[%clk 0:01:21.8]} 26.
gxf5 {[%clk 0:00:28.1]} 26... exf5 {[%clk 0:01:23.5]} 27. Rxe8+ {[%clk
0:00:28.4]} 27... Rxe8 {[%clk 0:01:25.4]} 28. Bd2 {[%clk 0:00:21.7]} 28... Kh8
{[%clk 0:01:18.2]} 29. Ra5 {[%clk 0:00:21.1]} 29... Rg8 {[%clk 0:01:16.5]} 30.
Kf1 {[%clk 0:00:21.9]} 30... b6 {[%clk 0:01:08.7]} 31. Rb5 {[%clk 0:00:21.4]}
31... Bf6 {[%clk 0:00:58.6]} 32. Qh3 {[%clk 0:00:22.5]} 32... Ne7 {[%clk
0:00:50.5]} 33. Rxf5 {[%clk 0:00:21.2]} 33... Bxd4 {[%clk 0:00:43.4]} 34. Qxh7+
{[%clk 0:00:16.9]} 34... Kxh7 {[%clk 0:00:42.6]} 35. Rxf7+ {[%clk 0:00:18.2]}
1-0

[Event "*** Titled Tuesday Blitz"]
[Site "Chess.com"]
[Date "2018.04.03"]
[Round "3"]
[White "wonderfultime"]
[Black "Doraemon7"]
[Result "0-1"]
[WhiteElo "2740"]
[BlackElo "2440"]
[TimeControl "180+2"]
[EndTime "13:37:02 PDT"]
[Termination "Doraemon7 won by resignation"]

1. d4 {[%clk 0:03:01.9]} 1... d5 {[%clk 0:03:01]} 2. Bf4 {[%clk 0:03:01.4]} 2...
e6 {[%clk 0:03:00.6]} 3. e3 {[%clk 0:03:02.6]} 3... c6 {[%clk 0:03:01.9]} 4. Nf3
{[%clk 0:03:01.5]} 4... Nf6 {[%clk 0:03:02.2]} 5. Nbd2 {[%clk 0:02:59.5]} 5...
Nbd7 {[%clk 0:02:56.2]} 6. Bd3 {[%clk 0:03:00]} 6... Be7 {[%clk 0:02:51]} 7. h3
{[%clk 0:02:58.9]} 7... Nf8 {[%clk 0:02:39.7]} 8. O-O {[%clk 0:02:34.5]} 8...
Ng6 {[%clk 0:02:39.7]} 9. Bh2 {[%clk 0:02:34.1]} 9... O-O {[%clk 0:02:33.2]} 10.
Qe2 {[%clk 0:02:32.9]} 10... Bd6 {[%clk 0:02:31.4]} 11. Ne5 {[%clk 0:02:30.3]}
11... Qc7 {[%clk 0:02:20.2]} 12. f4 {[%clk 0:02:28.2]} 12... c5 {[%clk
0:02:17.5]} 13. c3 {[%clk 0:02:25.3]} 13... c4 {[%clk 0:02:11.9]} 14. Bc2 {[%clk
0:02:24.9]} 14... b5 {[%clk 0:02:13.4]} 15. e4 {[%clk 0:02:23.8]} 15... dxe4
{[%clk 0:02:10.5]} 16. a4 {[%clk 0:02:17.5]} 16... b4 {[%clk 0:01:54.5]} 17.
Nxe4 {[%clk 0:02:13.6]} 17... Nxe4 {[%clk 0:01:33.7]} 18. Bxe4 {[%clk
0:02:15.5]} 18... Bb7 {[%clk 0:01:16.1]} 19. Bxb7 {[%clk 0:02:03]} 19... Qxb7
{[%clk 0:01:18]} 20. Nxc4 {[%clk 0:02:01.3]} 20... Qa6 {[%clk 0:01:08.5]} 21.
cxb4 {[%clk 0:01:38.6]} 21... Bxb4 {[%clk 0:01:07.2]} 22. Rad1 {[%clk
0:01:31.8]} 22... Qxa4 {[%clk 0:01:02.3]} 23. d5 {[%clk 0:01:25.2]} 23... exd5
{[%clk 0:00:57.7]} 24. Rxd5 {[%clk 0:01:27.1]} 24... Rfe8 {[%clk 0:00:49.3]} 25.
Qd3 {[%clk 0:01:06.1]} 25... Qc6 {[%clk 0:00:37.7]} 26. f5 {[%clk 0:00:54.6]}
26... Ne7 {[%clk 0:00:30.1]} 27. Rd7 {[%clk 0:00:52.8]} 27... f6 {[%clk
0:00:18]} 28. Kh1 {[%clk 0:00:47.9]} 28... Kh8 {[%clk 0:00:12.2]} 29. b3 {[%clk
0:00:48.5]} 29... Ng8 {[%clk 0:00:12.5]} 30. Bd6 {[%clk 0:00:39.2]} 30... Bxd6
{[%clk 0:00:12.9]} 31. Nxd6 {[%clk 0:00:41.1]} 31... Qxd7 {[%clk 0:00:12.7]} 32.
Qd5 {[%clk 0:00:28.2]} 32... Rf8 {[%clk 0:00:14]} 33. Rd1 {[%clk 0:00:21.3]}
33... Nh6 {[%clk 0:00:13.4]} 34. Qe6 {[%clk 0:00:21.1]} 34... Rad8 {[%clk
0:00:09.1]} 35. b4 {[%clk 0:00:17.6]} 35... Qc7 {[%clk 0:00:06.2]} 36. Rd4
{[%clk 0:00:16.4]} 36... Rd7 {[%clk 0:00:05]} 37. Nb5 {[%clk 0:00:07.5]} 37...
Qc1+ {[%clk 0:00:05.8]} 38. Kh2 {[%clk 0:00:08.6]} 38... Rxd4 {[%clk 0:00:06.9]}
39. Nxd4 {[%clk 0:00:09.4]} 39... Qf4+ {[%clk 0:00:08.1]} 40. Kh1 {[%clk
0:00:10.8]} 40... Qxd4 {[%clk 0:00:09.3]} 41. Qe7 {[%clk 0:00:12.3]} 41... Qd8
{[%clk 0:00:10.1]} 42. Qe4 {[%clk 0:00:13]} 42... Re8 {[%clk 0:00:11.2]} 0-1

[Event "*** Titled Tuesday Blitz"]
[Site "Chess.com"]
[Date "2018.04.03"]
[Round "3"]
[White "vovachesss"]
[Black "GMSrinath"]
[Result "0-1"]
[WhiteElo "2428"]
[BlackElo "2733"]
[TimeControl "180+2"]
[EndTime "13:37:03 PDT"]
[Termination "GMSrinath won by resignation"]

1. e4 {[%clk 0:03:01]} 1... e5 {[%clk 0:02:58.7]} 2. Nf3 {[%clk 0:03:01.4]} 2...
Nc6 {[%clk 0:03:00.3]} 3. Nc3 {[%clk 0:03:02.2]} 3... Nf6 {[%clk 0:03:01.2]} 4.
Bb5 {[%clk 0:03:03.4]} 4... Nd4 {[%clk 0:03:01.3]} 5. Bc4 {[%clk 0:03:01.6]}
5... Bc5 {[%clk 0:02:59.5]} 6. d3 {[%clk 0:02:54]} 6... Nxf3+ {[%clk 0:02:53.9]}
7. Qxf3 {[%clk 0:02:55.9]} 7... h6 {[%clk 0:02:55.8]} 8. Be3 {[%clk 0:02:53.1]}
8... Bxe3 {[%clk 0:02:54.4]} 9. fxe3 {[%clk 0:02:54.9]} 9... c6 {[%clk
0:02:54.4]} 10. O-O {[%clk 0:02:52.7]} 10... d6 {[%clk 0:02:55.2]} 11. Rf2
{[%clk 0:02:46.4]} 11... O-O {[%clk 0:02:52.5]} 12. Raf1 {[%clk 0:02:46.6]}
12... Be6 {[%clk 0:02:52.8]} 13. Qg3 {[%clk 0:02:11.6]} 13... Nh7 {[%clk
0:02:41.4]} 14. Bb3 {[%clk 0:01:41.3]} 14... Qe7 {[%clk 0:02:33.1]} 15. d4
{[%clk 0:01:25.9]} 15... Bxb3 {[%clk 0:02:31.3]} 16. axb3 {[%clk 0:01:25.9]}
16... f6 {[%clk 0:02:32]} 17. Qg6 {[%clk 0:01:03.1]} 17... Qf7 {[%clk
0:02:26.6]} 18. Qf5 {[%clk 0:01:01.2]} 18... Rfe8 {[%clk 0:02:22.5]} 19. Rd1
{[%clk 0:01:00.1]} 19... Rad8 {[%clk 0:02:18.8]} 20. Rfd2 {[%clk 0:01:00.8]}
20... Nf8 {[%clk 0:02:12.4]} 21. Ne2 {[%clk 0:00:48.9]} 21... Qc7 {[%clk
0:01:45.2]} 22. Ng3 {[%clk 0:00:47.4]} 22... d5 {[%clk 0:01:46.6]} 23. Qg4
{[%clk 0:00:37.9]} 23... Qf7 {[%clk 0:01:22.1]} 24. Nf5 {[%clk 0:00:30.4]} 24...
Qg6 {[%clk 0:01:21.4]} 25. h3 {[%clk 0:00:18]} 25... dxe4 {[%clk 0:01:05]} 26.
dxe5 {[%clk 0:00:16.1]} 26... Rxd2 {[%clk 0:01:05.3]} 27. Rxd2 {[%clk
0:00:15.6]} 27... Rxe5 {[%clk 0:01:06.5]} 28. Nd6 {[%clk 0:00:13]} 28... b5
{[%clk 0:00:32.6]} 29. Qc8 {[%clk 0:00:12.1]} 29... Qg3 {[%clk 0:00:23.4]} 30.
Nf5 {[%clk 0:00:10.9]} 30... Qe1+ {[%clk 0:00:18.1]} 31. Kh2 {[%clk 0:00:11.4]}
31... Qxd2 {[%clk 0:00:19.2]} 32. Nh4 {[%clk 0:00:07.8]} 32... Qd7 {[%clk
0:00:17.7]} 33. Qb8 {[%clk 0:00:07.1]} 33... Re8 {[%clk 0:00:18.1]} 34. Qg3
{[%clk 0:00:07.2]} 34... Nh7 {[%clk 0:00:15.1]} 35. Ng6 {[%clk 0:00:07.1]} 35...
Ng5 {[%clk 0:00:14.3]} 36. Nf4 {[%clk 0:00:08.5]} 36... Ne6 {[%clk 0:00:14.9]}
37. Nh5 {[%clk 0:00:09.4]} 37... Qc7 {[%clk 0:00:14.2]} 38. Nxf6+ {[%clk
0:00:07.8]} 38... Kf7 {[%clk 0:00:14.9]} 39. Nxe8 {[%clk 0:00:05]} 39... Kxe8
{[%clk 0:00:13.6]} 0-1

[Event "*** Titled Tuesday Blitz"]
[Site "Chess.com"]
[Date "2018.04.03"]
[Round "3"]
[White "EmeseBalogh"]
[Black "AndrewMcStone"]
[Result "0-1"]
[WhiteElo "1963"]
[BlackElo "2110"]
[TimeControl "180+2"]
[EndTime "13:37:11 PDT"]
[Termination "AndrewMcStone won by resignation"]

1. e4 {[%clk 0:03:01.9]} 1... Nc6 {[%clk 0:03:00.1]} 2. f4 {[%clk 0:02:58.7]}
2... d5 {[%clk 0:03:00.6]} 3. e5 {[%clk 0:02:59.6]} 3... Bf5 {[%clk 0:03:00.8]}
4. Nf3 {[%clk 0:03:00.9]} 4... e6 {[%clk 0:03:01.6]} 5. d4 {[%clk 0:03:02.3]}
5... Nh6 {[%clk 0:03:00]} 6. c3 {[%clk 0:02:59.7]} 6... Be7 {[%clk 0:03:00.9]}
7. Bd3 {[%clk 0:03:00.5]} 7... Qd7 {[%clk 0:03:00.5]} 8. Be3 {[%clk 0:03:00.6]}
8... f6 {[%clk 0:02:55.7]} 9. O-O {[%clk 0:02:59.1]} 9... O-O-O {[%clk
0:02:53.2]} 10. b4 {[%clk 0:02:59.2]} 10... Bxd3 {[%clk 0:02:44.9]} 11. Qxd3
{[%clk 0:02:59.6]} 11... Nf5 {[%clk 0:02:43.4]} 12. b5 {[%clk 0:03:00]} 12...
Na5 {[%clk 0:02:41.6]} 13. Nbd2 {[%clk 0:02:58.4]} 13... Nxe3 {[%clk 0:02:33.5]}
14. Qxe3 {[%clk 0:02:58.9]} 14... Rhe8 {[%clk 0:01:48.2]} 15. Rfc1 {[%clk
0:02:49.7]} 15... Qxb5 {[%clk 0:01:46.3]} 16. Rab1 {[%clk 0:02:47.5]} 16... Qc6
{[%clk 0:01:45.1]} 17. Nb3 {[%clk 0:02:29.4]} 17... Nc4 {[%clk 0:01:42.7]} 18.
Qe2 {[%clk 0:02:30.2]} 18... fxe5 {[%clk 0:01:37.9]} 19. Nxe5 {[%clk 0:02:27.8]}
19... Nxe5 {[%clk 0:01:36.1]} 20. fxe5 {[%clk 0:02:29.7]} 20... Bg5 {[%clk
0:01:34.7]} 21. Rc2 {[%clk 0:02:30.3]} 21... Rf8 {[%clk 0:01:10]} 22. c4 {[%clk
0:02:30.6]} 22... dxc4 {[%clk 0:01:03]} 23. Rxc4 {[%clk 0:02:32.5]} 23... Qd5
{[%clk 0:00:58.8]} 24. Qc2 {[%clk 0:02:31.6]} 24... Be3+ {[%clk 0:00:50.8]} 25.
Kh1 {[%clk 0:02:32]} 25... c6 {[%clk 0:00:51.9]} 26. Rc5 {[%clk 0:02:18.1]}
26... Qd7 {[%clk 0:00:47]} 27. Na5 {[%clk 0:01:39.6]} 27... Bxd4 {[%clk
0:00:42.3]} 28. Rxc6+ {[%clk 0:01:07]} 28... bxc6 {[%clk 0:00:37.4]} 29. Nxc6
{[%clk 0:01:07.5]} 29... Qc7 {[%clk 0:00:26]} 30. Nxa7+ {[%clk 0:01:06.2]} 30...
Kd7 {[%clk 0:00:21.5]} 31. Qa4+ {[%clk 0:01:06]} 31... Ke7 {[%clk 0:00:17.7]}
32. Nc6+ {[%clk 0:01:06.6]} 32... Kf7 {[%clk 0:00:14.4]} 33. Nxd8+ {[%clk
0:01:03.6]} 33... Qxd8 {[%clk 0:00:14.9]} 34. Rd1 {[%clk 0:00:55.8]} 34... Kg8
{[%clk 0:00:15.9]} 35. h3 {[%clk 0:00:54]} 35... Qd5 {[%clk 0:00:10.9]} 36. Qxd4
{[%clk 0:00:52.9]} 36... Rf1+ {[%clk 0:00:10.5]} 37. Rxf1 {[%clk 0:00:53.2]}
37... Qxd4 {[%clk 0:00:11.2]} 38. Rf3 {[%clk 0:00:53.7]} 38... Qxe5 {[%clk
0:00:11.8]} 39. Kg1 {[%clk 0:00:55.3]} 39... Qc5+ {[%clk 0:00:12.1]} 40. Kh2
{[%clk 0:00:56.2]} 40... e5 {[%clk 0:00:12.2]} 41. Kg3 {[%clk 0:00:58.1]} 41...
e4 {[%clk 0:00:13.2]} 42. Rf4 {[%clk 0:00:59.4]} 42... Qe3+ {[%clk 0:00:13]} 43.
Kg4 {[%clk 0:01:00.8]} 43... h5+ {[%clk 0:00:14.1]} 44. Kf5 {[%clk 0:01:01.5]}
44... Qd3 {[%clk 0:00:14.1]} 45. Rxe4 {[%clk 0:01:02.2]} 45... g6+ {[%clk
0:00:13.3]} 46. Kf4 {[%clk 0:01:01.9]} 46... Qd2+ {[%clk 0:00:13.6]} 47. Re3
{[%clk 0:01:00.4]} 47... Qxa2 {[%clk 0:00:12.4]} 48. Re8+ {[%clk 0:00:59]} 48...
Kf7 {[%clk 0:00:12.8]} 49. Re4 {[%clk 0:01:00.9]} 49... Qxg2 {[%clk 0:00:13.2]}
50. Ke5 {[%clk 0:01:01.9]} 50... Qg3+ {[%clk 0:00:12.9]} 51. Kd5 {[%clk
0:01:02.1]} 51... Qxh3 {[%clk 0:00:13.1]} 52. Kd4 {[%clk 0:01:04]} 52... Qd7+
{[%clk 0:00:10.6]} 53. Ke5 {[%clk 0:01:05]} 53... Qe6+ {[%clk 0:00:10.6]} 54.
Kf4 {[%clk 0:01:06.9]} 54... Qf6+ {[%clk 0:00:10.5]} 55. Ke3 {[%clk 0:01:07.6]}
55... g5 {[%clk 0:00:11.6]} 56. Ke2 {[%clk 0:01:07.4]} 56... Kg6 {[%clk
0:00:12.8]} 57. Re3 {[%clk 0:01:09.3]} 57... h4 {[%clk 0:00:14.1]} 0-1